[Event "48th Cup Berlin Companies 2024"]
[Site "Berlin"]
[Date "2024.04.15"]
[Round "1.2"]
[White "Woschech, Andreas"]
[Black "Glantz, Robert"]
[Result "0-1"]
[ECO "B40"]
[WhiteElo "2119"]
[BlackElo "2385"]
[Annotator "TA"]
[PlyCount "128"]
[EventDate "2024.04.15"]
[EventType "team-tourn"]
[EventCountry "GER"]
[SourceTitle "playchess.com"]
[Source "ChessBase"]
[SourceQuality "1"]
[TimeControl "7200"]

{[%evp 33,128,-2,0,-7,5,-12,0,-5,0,-68,-22,-80,-72,-130,-144,-120,-113,-175,-45,-143,-110,-227,-72,-91,-97,-88,-36,-37,-40,-34,-19,-46,-21,-23,-12,-25,-25,-37,-30,-47,-35,-43,-39,-65,-65,-65,-65,-141,-38,-38,-38,-25,-28,-23,-35,-32,0,-38,-7,-31,-33,-32,-43,-39,-25,-53,-4,-8,-8,-12,-15,-467,-442,-449,-420,-355,-344,-344,-333,-5097,-4230,-5595,-4861,-29969,-29970,-29967,-29970,-29969,-29971,-29971,-29970,-29969,-29967,-29970,-29971,-29988,-29989]} 1. e4 {[%emt 0:00:00]} c5 {[%emt 0:00:00]} 2. Nf3 {[%emt 0:00:10]} e6 {[%emt 0:00:11]} 3. d4 {[%emt 0:00:45]} cxd4 {[%emt 0:00:06]} 4. Nxd4 {[%emt 0:00:10]} Nc6 {[%emt 0:01:52]} 5. Nxc6 {[%emt 0:00:38]} bxc6 {[%emt 0:00:15]} 6. Bd3 {[%emt 0:00:04]} Nf6 {[%emt 0:00:28]} 7. O-O {[%emt 0:00:04]} d5 {[%emt 0:01:20]} 8. Nd2 {[%emt 0:06:26]} Be7 {[%emt 0:01:29]} 9. Qe2 {[%emt 0:00:43]} O-O {[%emt 0:01:19]} 10. c3 {[%emt 0:01:27]} a5 {[%emt 0:01:15]} 11. a4 {[%emt 0:01:04]} Qb6 {[%emt 0:03:42]} 12. exd5 {[%emt 0:01:39]} cxd5 {[%emt 0:00:16]} 13. Nf3 {[%emt 0:00:17]} Bb7 {[%emt 0:11:01]} 14. Be3 {[%emt 0:01:55]} Bc5 {[%emt 0:00:23]} 15. Bxc5 {[%emt 0:13:48]} Qxc5 {[%emt 0:00:02]} 16. Nd4 {[%emt 0:04:57]} Ne4 {[%emt 0:02:29]} 17. Qh5 {[%emt 0:02:43]} g6 {[%emt 0:03:22]} 18. Qe5 {[%emt 0:08:41]} Qe7 {[%emt 0:03:32]} (18... Qd6 {simplifies} 19. Qxd6 Nxd6 20. Rfb1 Rfc8) 19. Bb5 {[%emt 0:04:55]} Rfc8 {[%emt 0:06:23]} (19... Qd6 {simplifies} 20. Qxd6 Nxd6 21. f4 Kg7) 20. f4 {[%emt 0:03:18]} Qd6 {[%emt 0:15:15]} 21. Rad1 {[%emt 0:02:36]} (21. Rfe1 $11 Qc5 22. h3) 21... Ba6 {[%emt 0:01:19]} (21... Qb6 $15 22. Kh1 Ba6) 22. Rfe1 {[%emt 0:04:49]} (22. c4 $11 {remains equal.}) 22... Qb6 $17 {[%emt 0:05:14]} 23. g4 {[%emt 0:12:34]} (23. f5 $142 exf5 (23... gxf5 24. Rd3 $15) 24. Qxd5) 23... Bxb5 $17 {[%emt 0:04:57]} 24. axb5 {[%emt 0:00:42] [#]} Re8 $1 {[%emt 0:01:10]} 25. g5 {[%emt 0:00:56]} (25. Rxe4 $17 dxe4 26. Rf1) 25... Rec8 {[%emt 0:00:49]} ({Black should play} 25... Nd6 $19 26. h4 Nxb5) 26. Rd3 {[%emt 0:00:59]} ({White should try} 26. Kg2 $15) 26... a4 {[%emt 0:01:29]} 27. Rh3 {[%emt 0:01:06]} (27. Kg2 $17 {was necessary.}) 27... Qc7 $2 {[%emt 0:07:50]} (27... a3 $19 28. bxa3 Rxc3 (28... Nxc3 29. Ree3 $11) (28... Rxa3 $2 29. f5 $19) 29. Rxc3 Nxc3) 28. Qxc7 {[%emt 0:09:41]} Rxc7 {[%emt 0:00:02]} 29. Ra1 {[%emt 0:00:11]} Ra5 {[%emt 0:03:05]} (29... Rca7 $17 30. Ra3 Nd6) 30. Re3 $15 {[%emt 0:01:53]} Nd6 {[%emt 0:01:46]} 31. Re2 {[%emt 0:00:11]} Nc4 {[%emt 0:06:21]} 32. Kf2 {[%emt 0:04:04]} Rb7 {[%emt 0:02:52]} (32... h6 $5) 33. Ke1 {[%emt 0:02:43]} Kf8 {[%emt 0:00:11]} 34. Kd1 {[%emt 0:00:53]} Ke8 {[%emt 0:00:22]} 35. Kc1 {[%emt 0:01:17]} Kd7 {[%emt 0:00:15]} 36. h4 {[%emt 0:00:39]} Kc7 {[%emt 0:01:16]} 37. h5 {[%emt 0:00:12]} Kb6 {[%emt 0:00:50]} (37... gxh5 $6 38. Rh2 $16) 38. hxg6 {[%emt 0:01:02]} hxg6 {[%emt 0:00:01]} 39. Rh2 {[%emt 0:00:01]} Nd6 $1 {[%emt 0:00:47]} 40. Rd2 {[%emt 0:05:08]} (40. Rh8 $15) 40... Nxb5 {[%emt 0:00:40]} (40... Rc7 $17 {[%cal Oc7c4] ...Rc4! is the strong threat.} 41. Rh2 a3 (41... Nxb5 42. Nxb5 Kxb5 43. Rh8 $17) 42. Rxa3 Rxa3 (42... Nxb5 43. Nxb5 Rxb5 44. Ra8 $11) 43. bxa3 Ne4 (43... Nxb5 44. Rb2 $16) (43... Rxc3+ 44. Rc2 $11)) 41. Nxb5 $15 {[%emt 0:00:08]} Kxb5 {[%emt 0:00:04]} 42. Rd4 {[%emt 0:00:07]} Rba7 {[%emt 0:00:08]} 43. Ra3 {[%emt 0:00:10]} Kc5 {[%emt 0:00:39]} 44. Rb4 {[%emt 0:00:39]} R5a6 {[%emt 0:00:31]} 45. Kd2 {[%emt 0:00:38]} Kd6 {[%emt 0:02:10]} 46. Ke3 {[%emt 0:00:16]} e5 {[%emt 0:00:36]} 47. fxe5+ {[%emt 0:01:31]} Kxe5 {[%emt 0:00:01]} 48. Rf4 {[%emt 0:00:02]} Rb6 {[%emt 0:02:08]} 49. Rf2 {[%emt 0:00:25]} Rb3 {[%emt 0:00:36]} (49... Rb8 $15 {feels stronger.}) 50. Rxb3 $11 {[%emt 0:00:39]} axb3 {[%emt 0:00:01]} 51. Rf6 {[%emt 0:00:02]} Ra2 {[%emt 0:01:20]} 52. Rxf7 $2 {[%emt 0:00:19][%mdl 8192]} (52. Rf2 $1 $11) 52... Rxb2 $19 {[%emt 0:00:01]} 53. Rb7 {[%emt 0:00:04]} Rb1 {[%emt 0:00:53]} 54. Kd3 {[%emt 0:01:45]} Kf4 {[%emt 0:01:26]} 55. Rb5 {[%emt 0:00:39]} Kxg5 {[%emt 0:00:54]} 56. Rxd5+ $2 {[%emt 0:00:38]} (56. c4 Rd1+ 57. Ke2) 56... Kf4 $19 {[%emt 0:00:02]} 57. Rb5 {[%emt 0:00:14]} g5 {[%emt 0:00:08]} 58. c4 {[%emt 0:00:45]} g4 {[%emt 0:00:14]} 59. Rb8 {[%emt 0:00:26]} g3 {[%emt 0:00:37]} 60. Rf8+ {[%emt 0:00:23]} Kg4 {[%emt 0:00:47]} 61. Rg8+ {[%emt 0:00:03]} Kf3 {[%emt 0:00:20]} 62. Rf8+ {[%emt 0:00:02]} Kg2 {[%emt 0:00:13]} 63. Kc3 {[%emt 0:00:03]} b2 {[%emt 0:00:55]} 64. Rf4 {[%emt 0:00:31]} Rf1 {[%emt 0:00:17]} 0-1

[Event "48th Cup Berlin Companies 2024"]
[Site "Berlin"]
[Date "2024.04.15"]
[Round "1.3"]
[White "Kleeschaetzky, Rainer"]
[Black "Hoffmann, Udo"]
[Result "1-0"]
[ECO "B22"]
[WhiteElo "2219"]
[BlackElo "2221"]
[Annotator "TA"]
[PlyCount "75"]
[EventDate "2024.04.15"]
[EventType "team-tourn"]
[EventCountry "GER"]
[SourceTitle "playchess.com"]
[Source "ChessBase"]
[SourceQuality "1"]
[TimeControl "7200"]

{[%evp 24,75,0,0,0,0,103,96,183,160,161,-341,165,172,203,193,195,191,208,197,247,116,93,120,112,0,64,0,0,0,0,0,74,70,51,58,225,264,232,237,475,399,722,711,735,691,707,660,982,947,1091,1069,978,673]} 1. e4 {[%emt 0:00:01]} c5 {[%emt 0:00:03]} 2. c3 {[%emt 0:00:04]} Nf6 {[%emt 0:00:09]} 3. e5 {[%emt 0:00:15]} Nd5 {[%emt 0:00:02]} 4. Nf3 {[%emt 0:00:05]} Nc6 {[%emt 0:00:35]} 5. d4 {[%emt 0:00:20]} cxd4 {[%emt 0:00:15]} 6. cxd4 {[%emt 0:00:10]} d6 {[%emt 0:00:25]} 7. Bc4 {[%emt 0:00:05]} Nb6 {[%emt 0:00:33]} 8. Bb5 {[%emt 0:00:40]} Bd7 {[%emt 0:02:30]} 9. Nc3 {[%emt 0:01:36]} dxe5 {[%emt 0:06:06]} 10. Nxe5 {[%emt 0:00:25]} Nxe5 {[%emt 0:08:58]} 11. dxe5 {[%emt 0:00:18]} Bxb5 {[%emt 0:04:02]} 12. Nxb5 {[%emt 0:00:57]} Qxd1+ {[%emt 0:03:00]} 13. Kxd1 {[%emt 0:00:01] Nc7+ would now be deadly.} O-O-O+ {[%emt 0:03:10][%cal Be8c8,Bc8b8,Bb8a8,Ba8a7][%mdl 32]} 14. Ke2 {[%emt 0:01:02][%cal Oc1e3] Strongly threatening Be3!} a6 {[%emt 0:21:12]} (14... Rd5 $1 $11 15. a4 (15. Nxa7+ $2 Kb8 $19) 15... Rxe5+ 16. Be3 Nd5) 15. Be3 $1 $16 {[%emt 0:01:39]} Nd5 {[%emt 0:02:41] Black is weak on the dark squares} (15... Nc4 $16 {was worth a try.} 16. Rhc1 axb5) 16. Rac1+ $18 {[%emt 0:06:24]} Kb8 {[%emt 0:10:56]} 17. Ba7+ $1 {[%emt 0:00:05]} Ka8 {[%emt 0:00:06] [#]} 18. Rhd1 $1 {[%emt 0:00:02][%cal Od1d5] And now Rxd5! would win.} axb5 {[%emt 0:00:08]} (18... b6 19. Bxb6) 19. Bb6 {[%emt 0:00:05]} Nxb6 {[%emt 0:00:27]} 20. Rxd8+ {[%emt 0:00:16]} Ka7 {[%emt 0:00:02]} 21. f4 {[%emt 0:00:07]} g5 {[%emt 0:01:09]} (21... h5 $142 22. Rc7 f6) 22. g3 {[%emt 0:00:40]} (22. fxg5 $18 {is the precise move to win. aiming for Rf1.} h6 23. Rf1 hxg5 24. Rxf7) 22... Bg7 $16 {[%emt 0:03:13]} 23. Rxh8 {[%emt 0:09:36]} Bxh8 {[%emt 0:00:03]} 24. Kf3 {[%emt 0:00:09]} ({White should play} 24. e6 $1 $16 {[%cal Re6f7]} fxe6 25. fxg5) 24... Kb8 {[%emt 0:11:00]} (24... Bg7 $11) 25. Ke4 {[%emt 0:01:52]} (25. h4 $1 $14 g4+ 26. Kxg4) 25... Bg7 {[%emt 0:04:56]} 26. h4 {[%emt 0:03:25]} gxf4 {[%emt 0:03:42]} 27. gxf4 {[%emt 0:00:03]} e6 {[%emt 0:00:14] [#]} (27... Nd7 $11) 28. Rg1 $1 {[%emt 0:00:12][%mdl 1024] White has strong compensation.} f5+ {[%emt 0:00:12]} 29. Kf3 $1 {[%emt 0:01:22]} Bh6 {[%emt 0:00:24] This move loses the game for Black.} (29... Bf8 $14) 30. Rg8+ $18 {[%emt 0:00:26]} Ka7 {[%emt 0:00:06] [#]} ({But not} 30... Kc7 $2 31. Rh8 Kc6 32. Rxh7 $18) 31. Re8 $1 {[%emt 0:00:24]} Nd5 $2 {[%emt 0:07:23]} (31... Nc4 32. b3 (32. Rxe6 Nd2+ 33. Ke3 Nc4+ 34. Kf3 Nd2+ 35. Kg2 Bxf4 $14) 32... Nd2+ 33. Ke3 Nf1+ 34. Ke2 Nh2 35. Rxe6 (35. Ke3 Ng4+ 36. Kf3 Nh2+ 37. Kg3 Nf1+ 38. Kg2 Nd2 $18) 35... Bxf4) 32. Rxe6 {[%emt 0:00:16]} Bf8 {[%emt 0:01:19]} (32... Bxf4 33. Rd6 Bxe5 34. Rxd5 Bf6) 33. Re8 {[%emt 0:02:45] White is clearly winning.} Bb4 {[%emt 0:00:38]} 34. Rd8 {[%emt 0:05:54]} Nc7 {[%emt 0:01:33]} 35. a3 {[%emt 0:31:05]} Be1 {[%emt 0:02:34]} 36. h5 {[%emt 0:03:22]} Ne6 {[%emt 0:00:29]} 37. Rd6 {[%emt 0:00:31]} Nc7 {[%emt 0:00:20]} 38. Rf6 {[%emt 0:03:44] Weighted Error Value: White=0.21 (precise) /Black=0.56.  Loses game:     	---       	Black=1      Missed win:     	---       	Black=1      Mistake:       	White=3     	Black=7      OK:         	White=4     	Black=3      Best:        	White=4     	Black=4      Strong:       	White=6     	---} 1-0

[Event "48th Cup Berlin Companies 2024"]
[Site "Berlin"]
[Date "2024.04.15"]
[Round "1.4"]
[White "Weber, Daniel"]
[Black "Wiedersich, Jens"]
[Result "1-0"]
[ECO "A57"]
[WhiteElo "2132"]
[BlackElo "2095"]
[Annotator "TA"]
[PlyCount "95"]
[EventDate "2024.04.15"]
[EventType "team-tourn"]
[EventCountry "GER"]
[SourceTitle "playchess.com"]
[Source "ChessBase"]
[SourceQuality "1"]
[TimeControl "7200"]

{[%evp 19,95,76,97,63,63,50,65,45,55,26,56,7,16,13,14,10,32,5,11,6,14,0,0,0,0,0,0,0,0,0,108,0,8,8,0,2,2,0,0,0,0,0,0,0,3,0,0,0,0,0,0,0,6,3,10,10,11,11,35,40,42,14,51,58,67,0,0,0,172,0,0,0,61,12,89,0,12843,11264]} 1. d4 {[%emt 0:00:07]} Nf6 {[%emt 0:00:21]} 2. c4 {[%emt 0:00:44][%cal Bc2c4,Bc4b5][%mdl 32]} c5 {[%emt 0:00:08]} 3. d5 {[%emt 0:00:52]} b5 {[%emt 0:01:00]} 4. cxb5 {[%emt 0:01:43]} a6 {[%emt 0:00:58]} 5. f3 {[%emt 0:00:30]} d6 {[%emt 0:05:25]} 6. e4 {[%emt 0:00:07]} g6 {[%emt 0:00:08]} 7. Na3 {[%emt 0:01:24]} Bg7 {[%emt 0:00:35]} 8. Ne2 {[%emt 0:00:53]} axb5 {[%emt 0:03:26]} 9. Nxb5 {[%emt 0:01:16]} O-O {[%emt 0:03:58]} 10. Nec3 {[%emt 0:01:52]} Na6 {[%emt 0:04:14]} 11. Be2 {[%emt 0:02:09]} Nc7 {[%emt 0:00:16]} 12. O-O {[%emt 0:01:52]} Nxb5 {[%emt 0:00:09]} 13. Bxb5 {[%emt 0:00:59] White is slightly better.} Qb6 {[%emt 0:02:59][%cal Of6e4]} 14. Qe2 {[%emt 0:02:15]} Ba6 {[%emt 0:03:13]} 15. Be3 {[%emt 0:11:01]} (15. a4 $14) 15... Rfb8 $11 {[%emt 0:04:37][%cal Ra6b5]} 16. a4 {[%emt 0:02:00]} Ne8 {[%emt 0:08:16]} 17. Bxa6 {[%emt 0:07:56]} Rxa6 {[%emt 0:09:32]} 18. Nb5 {[%emt 0:04:10]} Raa8 {[%emt 0:06:25]} 19. Ra2 $36 {[%emt 0:04:02][%mdl 2048] White has the initiative.} Nc7 {[%emt 0:02:40]} 20. b4 {[%emt 0:01:47]} Nxb5 {[%emt 0:01:39]} 21. axb5 {[%emt 0:00:57]} Rxa2 {[%emt 0:00:21]} 22. Qxa2 {[%emt 0:00:13]} Qxb5 {[%emt 0:00:14]} 23. bxc5 {[%emt 0:00:06]} dxc5 {[%emt 0:00:17]} 24. Qa7 {[%emt 0:00:38][%csl LRc5,LRe7]} Be5 {[%emt 0:13:50]} (24... c4 $11) 25. f4 {[%emt 0:14:25]} (25. Bxc5 $6 Rb7 26. Qa8+ Rb8 $11) (25. Qxc5 Qd3 $11) (25. Qxe7 $16 Bd4 (25... Bxh2+ $2 26. Kxh2 Re8 27. Rb1 $18) 26. Bxd4 cxd4 27. Qa7) 25... Bd4 {[%emt 0:13:57]} 26. Bxd4 {[%emt 0:00:37]} cxd4 {[%emt 0:00:02]} 27. Qxd4 {[%emt 0:00:20][%mdl 4096] Endgame. KQR-KQR} (27. Qxe7 $2 d3 (27... Re8 28. Qa7 $11) 28. Qc7 d2 $19) 27... Qe2 {[%emt 0:00:53]} 28. h3 {[%emt 0:05:52]} Rb2 {[%emt 0:02:02]} 29. Qf2 {[%emt 0:02:22]} Qb5 {[%emt 0:00:26]} 30. Qf3 {[%emt 0:02:36]} Rb3 {[%emt 0:05:53]} 31. Qg4 {[%emt 0:04:23]} Rb1 {[%emt 0:03:30]} 32. Qf3 {[%emt 0:01:55]} Rb3 {[%emt 0:00:20]} 33. Qg4 {[%emt 0:00:02]} Rb1 {[%emt 0:00:28]} 34. Qc8+ {[%emt 0:00:03]} Kg7 {[%emt 0:00:08]} 35. Qc3+ {[%emt 0:00:04]} f6 {[%emt 0:09:16]} 36. Re1 {[%emt 0:01:27]} Rxe1+ {[%emt 0:02:15]} 37. Qxe1 {[%emt 0:00:11] KQ-KQ} Qd3 {[%emt 0:00:05]} 38. Kf2 {[%emt 0:01:51]} Kf8 {[%emt 0:01:09]} 39. Qe3 {[%emt 0:00:36]} Qc4 {[%emt 0:00:22]} 40. Qe2 {[%emt 0:00:50]} Qd4+ {[%emt 0:00:11]} 41. Kf3 {[%emt 0:00:09]} f5 {[%emt 0:00:03]} 42. g4 {[%emt 0:02:22]} ({White should play} 42. Qc2 $14) 42... fxe4+ {[%emt 0:00:13]} 43. Qxe4 {[%emt 0:00:07]} Qd1+ {[%emt 0:00:04] [#]} (43... Qd2 $11 {and Black stays safe.}) 44. Kg2 $2 {[%emt 0:03:01]} (44. Kg3 $18) 44... Qb3 {[%emt 0:00:12]} 45. Qe5 {[%emt 0:03:06]} Kg8 {[%emt 0:00:05] Prevents Qh8+} (45... Kf7 $11) 46. f5 {[%emt 0:03:47]} (46. Qxe7 $14 Qxd5+ 47. Kf2 Qd2+ 48. Kg3) 46... gxf5 {[%emt 0:00:09]} (46... Qd3 $1 $11 {keeps the balance.}) 47. gxf5 {[%emt 0:00:04]} ({Don't play} 47. Qxf5 Qe3 $11) ({Better is} 47. Qe6+ $16 Kf8 48. Qxf5+ (48. gxf5 Qc3 $11) 48... Kg8 49. Qe6+ Kf8 50. Qe5) 47... Qd3 $2 {[%emt 0:00:21][%mdl 8192] [#]} (47... Kf7 $11) 48. Qg3+ {[%emt 0:00:22] Weighted Error Value: White=0.20 (precise) /Black=0.23 (precise) .  Loses game:     	---       	Black=2      Missed win:     	White=1     	---        Mistake:       	White=5     	Black=3      Inaccurate:     	White=3     	Black=2      OK:         	White=10    	Black=14     Best:        	White=1     	Black=3} ({Inferior is} 48. Qxe7 Qxd5+ 49. Kg3 Qxf5 $11) 1-0

[Event "48th Cup Berlin Companies 2024"]
[Site "Berlin"]
[Date "2024.04.15"]
[Round "1.5"]
[White "Kuhne, Detlev"]
[Black "Thiede, Lars"]
[Result "0-1"]
[ECO "E92"]
[WhiteElo "2039"]
[BlackElo "2381"]
[Annotator "TA"]
[PlyCount "94"]
[EventDate "2024.04.15"]
[EventType "team-tourn"]
[EventCountry "GER"]
[SourceTitle "playchess.com"]
[Source "ChessBase"]
[SourceQuality "1"]
[TimeControl "7200"]

{[%evp 23,94,-21,-16,-16,-20,-12,-12,0,-16,-68,-70,-74,-65,-67,-56,-64,-68,-66,-77,-66,-69,-61,-66,-102,-86,-101,-95,-91,-109,-95,-98,-96,-81,-71,-66,-109,-128,-122,-122,-122,-121,-121,-121,-121,-120,-122,-120,-120,-120,-993,-940,-661,-401,-354,0,-8,0,-743,-737,-689,-659,-630,-570,-29982,-29983,-29983,-29984,-29984,-29985,-29985,-29986,-29985,-29986]} 1. Nf3 {[%emt 0:00:00]} Nf6 {[%emt 0:09:13]} 2. c4 {[%emt 0:00:21]} g6 {[%emt 0:06:14]} 3. Nc3 {[%emt 0:01:13]} Bg7 {[%emt 0:00:05]} 4. e4 {[%emt 0:01:16]} d6 {[%emt 0:00:22]} 5. d4 {[%emt 0:00:09]} O-O {[%emt 0:00:06]} 6. Be2 {[%emt 0:00:04]} Na6 {[%emt 0:00:07]} 7. O-O {[%emt 0:00:20]} e5 {[%emt 0:00:05]} 8. dxe5 {[%emt 0:04:16]} dxe5 {[%emt 0:00:11]} 9. Qxd8 {[%emt 0:00:05]} Rxd8 {[%emt 0:00:06]} 10. Bg5 {[%emt 0:00:07]} c6 {[%emt 0:00:09]} 11. Rad1 {[%emt 0:00:42]} Re8 {[%emt 0:01:25]} 12. h3 {[%emt 0:04:18]} Nc5 {[%emt 0:00:30]} 13. Bd3 {[%emt 0:08:54]} a5 {[%emt 0:02:31]} 14. Be3 {[%emt 0:00:57]} Nfd7 {[%emt 0:00:34]} 15. Bc2 {[%emt 0:00:54] The position is equal.} Bf8 {[%emt 0:01:00]} 16. Na4 {[%emt 0:09:47]} (16. Rd2 $11) 16... Nxa4 $15 {[%emt 0:03:41]} 17. Bxa4 {[%emt 0:07:37]} Bc5 {[%emt 0:00:52]} 18. Bxc5 {[%emt 0:00:35]} Nxc5 {[%emt 0:00:09]} 19. Bc2 {[%emt 0:00:02]} f6 {[%emt 0:00:28]} 20. b3 {[%emt 0:07:21]} Be6 {[%emt 0:00:54]} 21. Rd2 {[%emt 0:07:35]} Red8 {[%emt 0:00:43]} 22. Rfd1 {[%emt 0:01:03]} Rxd2 {[%emt 0:00:10]} 23. Rxd2 {[%emt 0:00:05]} Kf7 {[%emt 0:00:12]} 24. Ne1 {[%emt 0:12:10]} Ke7 {[%emt 0:00:56]} 25. f3 {[%emt 0:01:31]} a4 {[%emt 0:05:44]} 26. Nd3 {[%emt 0:05:12]} axb3 {[%emt 0:01:26]} 27. axb3 {[%emt 0:03:15]} Rd8 {[%emt 0:13:41]} (27... Nxd3 {simplifies} 28. Rxd3 Ra1+ 29. Kf2 b5) 28. Kf2 {[%emt 0:05:00]} b5 {[%emt 0:01:46]} 29. Ke3 {[%emt 0:01:08] [#]} Nxb3 {[%emt 0:10:53][%mdl 512] Black has more active pieces.} 30. Bxb3 {[%emt 0:00:10] Hoping for Nc5.} bxc4 {[%emt 0:00:06]} 31. Nxe5 {[%emt 0:04:31]} fxe5 {[%emt 0:02:24]} (31... cxb3 $2 {perishes.} 32. Nxc6+ Kf8 33. Rxd8+ $18 (33. Nxd8 Bc4 $18)) 32. Rxd8 {[%emt 0:01:57]} Kxd8 $17 {[%emt 0:00:07][%mdl 4096] Endgame. KB-KB} 33. Ba4 {[%emt 0:00:03]} Kc7 {[%emt 0:00:41]} 34. Kd2 {[%emt 0:00:04] [#]} c3+ $1 {[%emt 0:00:42][%mdl 512]} 35. Kxc3 {[%emt 0:00:08]} (35. Kc2 Bc4) 35... g5 $1 {[%emt 0:03:32]} 36. Bb3 $2 {[%emt 0:06:01][%mdl 8192]} (36. Kb4 $17) 36... Bxb3 $1 $19 {[%emt 0:09:10]} 37. Kxb3 {[%emt 0:00:09] KP-KP} h5 {[%emt 0:03:05] Strongly threatening ...h4.} 38. g3 {[%emt 0:00:33]} h4 $2 {[%emt 0:07:46]} (38... c5 $19 39. Kc4 Kb6) 39. gxh4 $11 {[%emt 0:00:13]} gxh4 {[%emt 0:00:04] K3P-K3P} 40. Kb4 $2 {[%emt 0:00:16][%mdl 8192]} (40. Kc4 $11) 40... Kb6 $1 $19 {[%emt 0:00:57]} 41. Kc4 {[%emt 0:00:09] [#]} c5 $1 {[%emt 0:01:31]} 42. Kd5 {[%emt 0:02:12] [#]} Kb5 $1 {[%emt 0:00:16] ( -> ...c4)} 43. Kxe5 {[%emt 0:00:01] Threatens to win with f4.} c4 {[%emt 0:00:09] Black mates.} 44. Kd4 {[%emt 0:06:36]} Kb4 {[%emt 0:00:17]} 45. e5 {[%emt 0:01:57]} c3 {[%emt 0:00:13]} 46. Kd3 {[%emt 0:02:27]} Kb3 {[%emt 0:00:08]} 47. e6 {[%emt 0:00:14]} c2 {[%emt 0:00:08] Weighted Error Value: White=0.61/Black=0.25 (precise) .  Loses game:     	White=2     	---        Mistake:       	White=1     	---        Inaccurate:     	White=2     	---        OK:         	White=10    	Black=11     Best:        	White=3     	Black=2      Strong:       	---       	Black=3      Brilliant:      	---       	Black=2} 0-1

[Event "48th Cup Berlin Companies 2024"]
[Site "Berlin"]
[Date "2024.04.15"]
[Round "1.6"]
[White "Duester, Christian"]
[Black "Michel, Steffen"]
[Result "1/2-1/2"]
[ECO "B12"]
[WhiteElo "2180"]
[BlackElo "2164"]
[Annotator "TA"]
[PlyCount "34"]
[EventDate "2024.04.15"]
[EventType "team-tourn"]
[EventCountry "GER"]
[SourceTitle "playchess.com"]
[Source "ChessBase"]
[SourceQuality "1"]
[TimeControl "7200"]

{[%evp 9,34,-4,0,0,11,0,52,49,57,55,45,42,67,66,61,63,58,72,93,57,79,30,40,0,0,0,0]} 1. e4 {[%emt 0:00:04]} c6 {[%emt 0:00:14]} 2. d4 {[%emt 0:00:18]} d5 {[%emt 0:00:03]} 3. f3 {[%emt 0:00:09]} e6 {[%emt 0:00:18]} 4. Nc3 {[%emt 0:00:13]} Bb4 {[%emt 0:00:07]} 5. Bd2 {[%emt 0:01:55][%cal Bc1d2,Bd2c3,Bc3e1,Be1g3][%mdl 32]} b6 {[%emt 0:02:46]} 6. a3 {[%emt 0:02:13]} Bxc3 {[%emt 0:01:22]} 7. Bxc3 {[%emt 0:00:02]} Ba6 {[%emt 0:00:16]} ({Better is} 7... dxe4 $11 8. Nh3 exf3) 8. Bxa6 $14 {[%emt 0:04:15] White is slightly better.} Nxa6 {[%emt 0:00:51]} 9. Qd3 {[%emt 0:02:11]} Nc7 {[%emt 0:00:20]} 10. Ne2 {[%emt 0:02:53]} Nf6 {[%emt 0:04:43]} 11. O-O {[%emt 0:02:45]} O-O {[%emt 0:01:26]} 12. Be1 {[%emt 0:03:40]} Nd7 {[%emt 0:02:03]} 13. Bg3 {[%emt 0:03:35]} Re8 {[%emt 0:03:28]} 14. Rad1 {[%emt 0:20:35] White is more active.} Rc8 {[%emt 0:07:23]} 15. c3 {[%emt 0:21:01]} (15. c4 $16) 15... Nf8 {[%emt 0:10:27]} 16. Bxc7 {[%emt 0:04:37]} dxe4 {[%emt 1:24:13]} 17. fxe4 {[%emt 0:49:34]} Rxc7 {Weighted Error Value: White=0.13 (very precise) /Black=0.13 (very precise) .  Mistake:       	White=1     	Black=1      Inaccurate:     	White=2     	---        OK:         	White=4     	Black=5} 1/2-1/2

[Event "48th Cup Berlin Companies 2024"]
[Site "Berlin"]
[Date "2024.04.15"]
[Round "1.8"]
[White "Giebel, Christine"]
[Black "Feikes, Joerg"]
[Result "1/2-1/2"]
[ECO "C45"]
[WhiteElo "1879"]
[BlackElo "1986"]
[Annotator "RC"]
[PlyCount "61"]
[EventDate "2024.04.15"]
[EventType "team-tourn"]
[EventCountry "GER"]
[SourceTitle "playchess.com"]
[Source "ChessBase"]
[SourceQuality "1"]
[TimeControl "7200"]

1. e4 {[%emt 0:00:02]} e5 {[%emt 0:00:02]} 2. Nf3 {[%emt 0:00:07]} Nc6 {[%emt 0:00:04]} 3. d4 {[%emt 0:00:05]} exd4 {[%emt 0:00:06]} 4. Nxd4 {[%emt 0:00:08]} Bc5 {[%emt 0:00:14]} 5. Be3 {[%emt 0:00:50]} Qf6 {[%emt 0:00:09]} 6. c3 {[%emt 0:00:14]} Nge7 {[%emt 0:00:28]} 7. Qf3 {[%emt 0:01:56]} Nxd4 {[%emt 0:10:13]} 8. Qxf6 {[%emt 0:00:47]} Nc2+ {[%emt 0:00:08]} 9. Kd2 {[%emt 0:00:12]} Bxe3+ {[%emt 0:00:05]} 10. fxe3 {[%emt 0:00:07]} gxf6 {[%emt 0:00:06]} 11. Kxc2 {[%emt 0:00:08]} f5 {[%emt 0:04:27]} 12. exf5 {[%emt 0:21:43]} Nxf5 {[%emt 0:00:10]} 13. e4 {[%emt 0:00:09]} Ne3+ {[%emt 0:01:13]} 14. Kd3 {[%emt 0:00:36]} Ng4 {[%emt 0:11:32]} 15. Ke2 {[%emt 0:07:16]} h5 {[%emt 0:03:30]} 16. Nd2 {[%emt 0:06:12]} d6 {[%emt 0:02:46]} 17. Nf3 {[%emt 0:08:07]} O-O {[%emt 0:09:05]} 18. h3 {[%emt 0:05:47]} Nf6 {[%emt 0:01:38]} 19. Kd3 {[%emt 0:03:55]} b6 {[%emt 0:04:27]} 20. Re1 {[%emt 0:09:32]} Re8 {[%emt 0:01:57]} 21. Rg1 {[%emt 0:07:22]} Nxe4 {[%emt 0:05:49]} 22. Kc2 {[%emt 0:13:14]} Bf5 {[%emt 0:12:22]} 23. Bd3 {[%emt 0:08:30]} Ng3 {[%emt 0:01:12]} 24. Nd4 {[%emt 0:04:37]} Bxd3+ {[%emt 0:03:36]} 25. Kxd3 {[%emt 0:00:01]} a6 {[%emt 0:01:15]} 26. Re3 {[%emt 0:02:26]} Rxe3+ {[%emt 0:00:11]} 27. Kxe3 {[%emt 0:00:01]} c5 {[%emt 0:02:30]} 28. Nc6 {[%emt 0:05:51]} Kf8 {[%emt 0:04:15]} 29. Rd1 {[%emt 0:02:43]} Re8+ {[%emt 0:16:43]} 30. Kf3 {[%emt 0:01:24]} Ne4 {[%emt 0:00:34]} 31. Kf4 {[%emt 0:00:58]} 1/2-1/2